bitfinex-derivatives/quotes_ETHF0:USTF0_20250926
["timestamp","ask_amount","ask_price","bid_price","bid_amount"]
[1758852746775,1.50228756,3943.0,3942.9,0.28936236]
[1758852747772,1.50228756,3943.0,3942.9,0.50856236]
[1758852748378,1.50228756,3943.0,3942.9,0.28936236]
[1758852748776,1.50228756,3943.0,3942.9,0.02536236]
[1758852748969,0.57658756,3943.0,3942.9,0.78316236]
[1758852749370,0.92208756,3943.0,3942.9,0.78316236]
[1758852749571,0.57658756,3943.0,3942.9,0.78316236]
[1758852749767,0.92208756,3943.0,3942.9,0.78316236]
[1758852749970,0.57658756,3943.0,3942.9,0.78316236]
[1758852750175,0.4835,3943.5,3943.4,0.87807]
[1758852750176,0.3455,3943.5,3943.4,0.87807]
[1758852750379,0.3455,3943.5,3943.4,1.21427]
[1758852750676,0.5581,3943.5,3943.4,1.21427]
[1758852750882,0.9213086,3943.5,3943.4,0.79237]
[1758852751383,0.3434,3943.4,3942.9,0.02536236]
[1758852751677,0.1305,3943.0,3942.9,0.02536236]
[1758852751874,0.4739,3943.0,3942.9,0.28936236]
[1758852752072,0.1305,3943.5,3942.9,0.28936236]
[1758852752282,0.91945344,3943.4,3943.0,0.4375]
[1758852752472,0.57605344,3943.3,3943.2,0.4562]
[1758852752668,0.57605344,3943.3,3943.2,0.7924]
[1758852752883,0.91945344,3943.3,3943.2,0.7924]
[1758852753073,0.91945344,3943.3,3943.2,0.3362]
[1758852753273,1.37564344,3943.3,3943.2,0.3362]
[1758852753470,1.58824344,3943.3,3943.2,0.7581]
[1758852753686,1.58818315,3943.3,3943.2,0.7581]
[1758852753882,1.58818315,3943.3,3942.9,0.49806236]
[1758852753883,0.556,3943.0,3942.9,0.49806236]
[1758852754071,0.7669,3943.0,3942.9,0.49806236]
[1758852754276,0.8974,3943.0,3942.9,0.49806236]
[1758852754580,1.04988334,3943.0,3942.9,1.04746236]
[1758852754884,0.556,3943.4,3943.3,0.2087]
[1758852755084,1.13197262,3943.4,3943.3,0.2087]
[1758852755285,1.13197262,3943.4,3943.3,1.0221]
[1758852756183,0.57597262,3943.4,3943.3,1.0221]
[1758852757477,0.3434,3943.8,3943.7,0.2087]
[1758852757478,0.7669,3943.8,3943.7,0.2087]
[1758852757684,0.2126,3943.5,3943.4,1.21427]
[1758852757883,0.57583808,3943.5,3943.4,1.21427]
[1758852758083,0.57583808,3943.7,3943.4,1.21427]
[1758852758387,0.3434,3943.8,3943.5,0.7581]
[1758852758388,0.57583808,3943.6,3943.5,0.7581]
[1758852758577,0.57583808,3943.6,3943.5,0.4219]
[1758852758778,1.13186142,3943.7,3943.6,0.7581]
[1758852759783,0.57586142,3943.7,3943.6,0.4219]
[1758852759981,0.3434,3944.2,3944.1,0.7581]
[1758852760283,0.3434,3944.2,3943.9,0.45611]
[1758852760284,0.2126,3944.0,3943.9,0.66481]
[1758852760483,1.34266763,3944.0,3943.9,0.92881]
[1758852760693,1.34266763,3944.0,3943.9,41.72881]
[1758852761991,1.47316763,3944.0,3943.9,40.8]
[1758852762292,0.57576763,3944.0,3943.9,41.4002]
[1758852762588,0.0253,3944.5,3944.4,1.21416]
[1758852762776,0.0253,3944.5,3944.4,1.47816]
[1758852762975,0.60118984,3944.5,3944.4,1.47816]
[1758852763184,0.0253,3944.5,3944.4,1.47816]
[1758852767287,0.4739,3946.0,3945.4,0.3362]
[1758852767482,0.4235,3945.8,3945.5,0.264]
[1758852767680,0.7669,3945.1,3945.0,0.4219]
[1758852767881,0.7669,3945.1,3944.1,0.3362]
[1758852767882,1.79843945,3945.1,3944.1,0.3362]
[1758852768195,0.1305,3945.5,3944.7,0.66472]
[1758852768196,0.7669,3944.8,3944.7,0.66472]
[1758852768485,0.556,3945.2,3945.1,0.45598]
[1758852768683,1.13402372,3945.2,3945.1,0.87788]
[1758852769090,0.3434,3945.7,3945.6,0.45592]
[1758852769292,1.34467594,3945.7,3945.6,0.45592]
[1758852769888,0.554,3945.5,3945.4,0.45594]
[1758852770186,1.47517594,3945.5,3945.4,0.45594]
[1758852770381,1.47517594,3945.5,3944.7,40.8]
[1758852770382,0.556,3945.4,3945.3,0.71996]
[1758852770580,1.34467594,3945.4,3945.3,0.92866]
[1758852771191,1.34467594,3945.4,3945.3,0.71996]
[1758852772387,0.556,3945.4,3945.3,0.92866]
[1758852772687,0.7669,3945.4,3945.3,0.71996]
[1758852773695,0.7669,3945.4,3945.3,0.92866]
[1758852773891,0.7669,3945.9,3945.8,0.45589]
[1758852774193,1.34394041,3945.9,3945.8,0.45589]
[1758852774491,0.57704041,3945.9,3945.8,1.47799]
[1758852774695,0.0253,3946.2,3946.1,1.21396]
[1758852774994,0.5813,3946.2,3946.1,1.21396]
[1758852775195,0.556,3946.2,3946.1,42.01396]
[1758852775699,0.556,3946.2,3946.1,41.67776]
[1758852776385,0.556,3946.2,3946.1,41.0087]
[1758852776586,0.556,3946.2,3945.5,0.125]
[1758852776587,0.2109,3945.8,3945.5,0.45593]
[1758852776789,0.1305,3946.0,3945.9,0.87779]
[1758852776790,0.6865,3946.0,3945.9,0.87779]
[1758852776991,0.8974,3946.0,3945.9,1.14179]
[1758852777193,0.8974,3946.0,3945.9,41.94179]
[1758852779092,0.8974,3946.0,3945.9,41.064]
[1758852779288,0.556,3945.3,3945.2,1.00087]
[1758852779488,0.3434,3945.9,3945.3,0.3362]
[1758852779792,0.556,3945.5,3945.4,41.25595]
[1758852779992,0.556,3945.5,3945.4,41.59215]
[1758852780191,0.7643,3945.9,3945.8,0.67339]
[1758852780392,0.7643,3945.9,3945.8,1.23129]
[1758852780393,0.79247272,3945.9,3945.8,1.23129]
[1758852780592,0.38966274,3946.5,3945.8,1.23129]
[1758852780593,0.5538,3946.2,3946.1,0.67336]
[1758852780793,0.5538,3946.2,3946.1,1.15316]
[1758852780990,1.13012725,3946.2,3946.1,1.15316]
[1758852781385,1.13012725,3946.2,3946.1,1.49526]
[1758852781586,0.4266,3945.8,3945.7,0.6734]
[1758852781794,0.5538,3946.4,3946.3,0.67333]
[1758852781998,1.1301172,3946.4,3946.3,0.67333]
[1758852782499,1.1301172,3946.4,3946.3,0.88913]
[1758852782700,0.7643,3945.7,3945.6,0.88921]
[1758852782900,0.7643,3945.7,3945.6,1.15321]
[1758852783205,0.5538,3945.7,3945.6,1.49531]
[1758852783399,0.1267,3946.0,3945.9,0.45589]
[1758852783693,0.5533,3946.0,3945.9,0.67339]
[1758852783899,0.1267,3945.5,3945.4,41.25594]
[1758852784086,0.4713,3945.5,3945.4,41.51994]
[1758852785000,0.8973,3945.5,3945.4,0.94454]
[1758852785792,0.2097,3944.8,3944.7,1.01843]
[1758852786088,0.1267,3945.5,3945.4,0.45595]
[1758852786089,0.3364,3945.5,3945.4,0.45595]
[1758852786295,1.47454481,3945.5,3945.4,0.89075]
[1758852786893,1.47454481,3945.5,3945.4,0.68055]
[1758852787102,1.47454481,3945.5,3945.4,0.45595]
[1758852788008,0.2097,3944.2,3944.1,0.45609]
[1758852788304,0.5543,3944.2,3944.1,41.25609]
[1758852788491,0.3446,3944.4,3944.3,0.45607]
[1758852788697,0.1295,3945.0,3944.3,0.264]
[1758852788698,0.3446,3944.8,3944.3,0.264]
[1758852789003,0.4741,3945.0,3944.9,0.456]
[1758852789396,1.05192362,3945.0,3944.9,0.456]
[1758852790402,0.57782362,3945.0,3944.9,0.456]
[1758852790599,0.57820723,3945.3,3945.0,0.45599]
[1758852790799,0.92280723,3945.2,3945.1,0.264]
[1758852792003,0.3446,3945.1,3945.0,0.45599]
[1758852792203,0.92280723,3945.1,3945.0,0.264]
[1758852792498,0.92280723,3945.1,3944.2,0.72008]
[1758852792499,0.1295,3944.5,3944.2,0.72008]
[1758852792701,0.92280723,3944.4,3944.3,0.45606]
[1758852792894,0.57820723,3944.4,3944.3,0.45606]
[1758852793297,0.57869196,3944.4,3944.2,0.264]
[1758852793498,0.3446,3944.9,3944.2,0.264]
[1758852793803,0.3446,3944.7,3944.6,0.45604]
[1758852794003,0.92329202,3944.7,3944.6,0.45604]
[1758852795209,0.92329202,3944.7,3944.6,0.72004]
[1758852795607,0.92319991,3944.7,3944.6,0.72004]
[1758852795805,0.92319991,3944.7,3944.6,5.72004]
[1758852795806,0.57859991,3944.7,3944.6,5.72004]
[1758852796108,0.3446,3945.2,3945.1,0.45598]
[1758852796307,0.92311973,3945.2,3945.1,0.71998]
[1758852797301,0.1295,3945.0,3944.7,0.45602]
[1758852797509,0.3446,3944.8,3944.6,0.264]
[1758852797713,0.1295,3944.5,3944.4,0.45605]
[1758852798008,1.05261973,3944.5,3944.4,0.72005]
[1758852798308,0.57851973,3944.5,3944.4,0.72005]
[1758852798708,0.3446,3944.9,3944.8,0.45601]
[1758852798910,0.91940897,3944.9,3944.8,0.72001]
[1758852799610,0.3446,3945.4,3945.3,0.45596]
[1758852799804,0.3446,3945.4,3945.3,0.264]
[1758852800004,0.91933436,3945.4,3945.3,0.264]
[1758852800309,0.91933436,3945.4,3945.3,41.064]
[1758852800505,0.57473436,3945.4,3945.3,41.064]
[1758852800806,0.3446,3945.9,3945.6,0.45592]
[1758852801016,0.9192052,3945.8,3945.7,0.264]
[1758852801205,0.4741,3945.5,3945.4,0.45594]
[1758852801402,0.4741,3945.5,3945.4,0.71994]
[1758852801601,0.1295,3946.5,3945.9,0.45589]
[1758852801813,1.04352434,3946.0,3945.9,0.264]
[1758852805819,1.46952434,3946.0,3945.9,0.264]
[1758852806621,0.7706,3945.4,3945.3,40.8]
[1758852806828,0.7706,3945.4,3945.3,41.064]
[1758852807119,0.7706,3945.4,3944.8,0.456]
[1758852807120,0.1295,3945.0,3944.8,0.456]
[1758852807313,0.3446,3944.9,3944.8,0.456]
[1758852807510,0.3446,3944.9,3944.8,0.72]
[1758852807727,0.4741,3945.5,3945.4,0.45594]
[1758852808025,0.4741,3945.5,3945.4,0.71994]
[1758852808619,1.04644644,3945.5,3945.4,0.71994]
[1758852810726,1.47584644,3945.5,3945.4,0.71994]
[1758852813318,1.04644644,3945.5,3945.4,0.71994]
[1758852813519,1.04644644,3945.5,3945.4,5.71994]
[1758852813712,1.47954644,3945.5,3945.4,5.71994]
[1758852814833,1.47954644,3945.5,3945.4,0.71994]
[1758852815329,1.25984644,3945.5,3945.4,0.71994]
[1758852815718,1.47954644,3945.5,3945.4,0.71994]
[1758852816322,1.04644644,3945.5,3945.4,0.71994]
[1758852817426,1.47954644,3945.5,3945.4,0.71994]
[1758852817615,0.57234644,3945.5,3945.4,0.71994]
[1758852817929,0.55,3945.9,3945.8,0.4559]
[1758852818126,1.12000274,3945.9,3945.8,0.7199]
[1758852818423,0.1548,3946.5,3945.8,0.7199]
[1758852818424,0.0253,3946.5,3946.4,1.21343]
[1758852818629,0.0253,3946.5,3946.4,6.76388336]
[1758852819125,0.5626,3947.0,3946.9,0.67127]
[1758852819325,0.5626,3947.0,3946.9,0.93527]
[1758852820228,0.8992,3947.0,3946.9,0.93527]
[1758852821625,0.8992,3947.0,3946.9,1.14507]
[1758852822027,0.8992,3947.0,3946.9,0.71977]
[1758852822227,0.8992,3947.0,3946.9,0.93527]
[1758852823834,0.8992,3947.0,3946.9,1.14507]
[1758852824126,0.4713,3947.5,3947.4,0.88101]
[1758852824428,0.6847,3947.5,3947.4,1.14501]
[1758852824629,0.9044,3947.5,3947.4,41.064]
[1758852825230,0.9044,3947.5,3947.4,0.264]
[1758852825532,0.9044,3947.5,3947.4,0.6893]
[1758852825732,0.6847,3947.5,3947.4,1.0216]
[1758852826323,0.6847,3947.5,3947.4,0.6893]
[1758852826726,0.0198,3947.7,3947.6,0.4253]
[1758852826928,0.0198,3947.7,3947.6,2.09225747]
[1758852827129,0.59024,3949.0,3947.8,0.3323]
[1758852827431,0.59024,3949.0,3947.7,1.1392]
[1758852827432,0.4331,3948.6,3948.5,0.45558]
[1758852827630,0.4331,3948.6,3948.3,0.45561]
[1758852827830,0.4331,3948.6,3948.4,0.264]
[1758852828034,0.4331,3948.6,3948.4,0.71959]
[1758852828235,0.4331,3948.6,3948.5,1.88245747]
[1758852828734,0.4331,3948.6,3948.5,2.09225747]
[1758852828936,0.7697,3948.6,3948.5,2.09225747]
[1758852829726,0.7697,3948.6,3948.0,0.1324]
[1758852829727,0.1347,3948.5,3948.1,0.3323]
[1758852829922,0.1347,3948.5,3948.0,1.33465747]
[1758852829923,0.7697,3948.1,3948.0,1.33465747]
[1758852830128,0.7697,3948.1,3948.0,1.59865747]
[1758852830327,0.7697,3948.1,3948.0,1.81415747]
[1758852830537,0.7697,3948.1,3948.0,0.4795]
[1758852831434,0.7697,3948.1,3948.0,0.8118]
[1758852831731,0.59024,3949.0,3948.4,0.4253]
[1758852832039,0.7697,3948.6,3948.5,0.93508]
[1758852832936,0.7697,3948.1,3948.0,0.5478]
[1758852833236,0.7697,3948.1,3948.0,0.8118]
[1758852833431,0.1347,3949.0,3948.0,0.7576]
[1758852833637,3.18016355,3950.7,3949.1,0.3323]
[1758852833638,1.81723631,3950.6,3949.1,0.3323]
[1758852833834,3.18016355,3950.7,3949.0,0.1324]
[1758852833835,0.078,3951.0,3950.3,0.45537]
[1758852834035,0.078,3951.0,3950.2,0.264]
[1758852834242,0.32171752,3951.2,3950.3,5.0733786]
[1758852834541,0.32171752,3951.2,3950.7,0.45533]
[1758852834726,0.07554238,3951.2,3950.8,0.3323]
[1758852835028,2.5561919,3951.5,3950.9,0.3323]
[1758852835226,0.0673,3951.5,3951.1,0.45529]
[1758852835439,0.70431361,3951.6,3950.9,0.78761]
[1758852835637,0.2127,3951.5,3950.9,0.78761]
[1758852835831,0.2127,3951.6,3951.0,0.45529]
[1758852836530,0.2127,3951.6,3950.9,0.3323]
[1758852836531,0.45699966,3951.6,3951.1,0.45528]
[1758852836740,0.24429966,3951.6,3951.1,0.78758]
[1758852836930,0.2127,3951.5,3951.2,0.3323]
[1758852837734,0.2127,3951.5,3951.1,0.45528]
[1758852837928,2.44386658,3951.7,3950.6,0.264]
[1758852837929,0.2127,3951.6,3950.6,0.264]
[1758852838134,0.0673,3951.5,3950.7,0.3323]
[1758852838336,0.45529,3951.2,3950.5,0.58775]
[1758852838527,0.2127,3951.1,3950.5,0.58775]
[1758852838730,0.2127,3951.1,3950.7,0.3323]
[1758852838935,0.45529,3951.2,3950.7,0.3323]
[1758852839135,0.45529,3951.2,3950.8,0.3323]
[1758852839338,0.4553,3951.0,3950.8,0.3323]
[1758852839639,0.45532,3950.8,3950.6,0.3323]
[1758852839839,0.2127,3950.5,3950.0,41.1964]
[1758852840038,0.66702,3950.8,3950.0,41.1964]
[1758852840236,0.0673,3951.5,3950.0,41.1964]
[1758852840237,1.34984,3951.4,3950.0,0.1324]
[1758852840443,0.2117,3951.0,3949.5,0.1324]
[1758852840739,4.7410786,3951.1,3949.6,0.3286]
[1758852840740,0.6671,3950.1,3949.6,0.3286]
[1758852841042,0.4554,3950.1,3949.5,0.461]
[1758852841241,0.2117,3949.9,3949.6,0.3286]
[1758852841541,0.45539,3950.2,3949.6,0.3286]
[1758852841742,0.45541,3950.1,3949.6,0.3286]
[1758852841939,0.45541,3950.1,3949.5,0.1324]
[1758852842140,4.54309079,3953.1,3950.3,0.45538]
[1758852842141,0.224,3951.3,3950.3,0.45538]
[1758852842340,0.2117,3951.2,3950.6,0.3286]
[1758852842845,0.2117,3951.2,3950.7,0.45532]
[1758852843047,0.2117,3951.2,3950.8,0.3286]
[1758852843337,0.2117,3951.7,3951.1,0.3286]
[1758852843541,0.66693,3951.7,3951.1,0.78388]
[1758852843731,2.53370434,3951.9,3951.1,0.78388]
[1758852843732,0.2117,3951.8,3951.1,0.3286]
[1758852843931,2.53370434,3951.9,3951.0,0.1286]
[1758852843932,0.45525,3951.5,3951.0,0.1286]
[1758852844244,0.2116,3951.3,3951.1,0.3424]
[1758852844444,0.45527,3951.3,3951.1,0.3424]
[1758852844639,4.7410786,3951.7,3950.7,0.3424]
[1758852844843,0.1329,3951.0,3950.0,0.1286]
[1758852845046,0.45536,3950.5,3950.0,0.1286]
[1758852845246,0.3364,3950.4,3950.0,0.58401]
[1758852845548,0.3364,3950.4,3950.1,0.4554]
[1758852846040,0.45537,3950.4,3950.0,0.1286]
[1758852846247,0.3364,3950.1,3949.7,0.71944]
[1758852846442,0.7918,3950.1,3949.7,0.71944]
[1758852846642,0.0852,3950.5,3949.5,0.58787]
[1758852846643,0.3364,3949.9,3949.5,0.58787]
[1758852847039,0.3364,3949.9,3949.6,0.3424]
[1758852847336,0.3364,3949.9,3949.5,0.58787]
[1758852847737,0.0852,3950.5,3949.1,40.8]
[1758852847738,0.54856414,3949.8,3949.1,40.8]
[1758852847938,0.3364,3949.4,3949.1,0.3424]
[1758852848133,0.078,3950.0,3948.8,0.3424]
[1758852848134,0.3364,3949.1,3948.8,0.3424]
[1758852848338,0.45547,3949.6,3949.0,0.45553]
[1758852848540,0.5490977,3949.5,3949.0,0.1346]
[1758852848749,1.0045777,3949.4,3949.1,0.3424]
[1758852848946,0.5490977,3949.3,3949.1,0.3424]
[1758852849150,0.5490977,3949.2,3949.1,0.79792]
[1758852849346,0.79183,3949.9,3949.3,0.45549]
[1758852849645,0.54923613,3949.8,3949.6,0.3424]
[1758852849846,0.88563613,3949.7,3949.0,0.1346]
[1758852850150,0.88563613,3949.7,3949.0,0.477]
[1758852850151,1.00469613,3949.6,3949.0,0.477]
[1758852850353,0.88563613,3949.5,3949.1,0.3424]
[1758852850645,0.078,3950.0,3949.0,41.1424]
[1758852850646,0.54923613,3949.4,3949.0,41.1424]
[1758852850850,0.88563613,3949.3,3949.0,41.1424]
[1758852851151,0.88563613,3949.3,3948.9,0.264]
[1758852851152,0.3364,3949.1,3948.9,0.6064]
[1758852851343,0.45554,3948.9,3948.7,0.264]
[1758852851543,0.45558,3948.6,3948.2,0.3424]
[1758852851838,0.4556,3948.4,3948.2,0.264]
[1758852852043,0.88627862,3948.3,3947.6,0.3424]
[1758852852242,0.54987862,3948.2,3947.5,0.3986]
[1758852852550,0.54987862,3948.1,3948.0,0.477]
[1758852852752,0.54987862,3948.4,3948.0,0.1346]
[1758852853049,0.3364,3948.9,3948.1,0.3424]
[1758852853050,1.0057478,3948.3,3948.1,0.3424]
[1758852853241,0.5501378,3948.2,3948.1,0.3424]
[1758852853641,0.5501378,3948.2,3947.7,0.264]
[1758852853642,0.8865378,3948.2,3947.7,0.264]
[1758852853839,0.3364,3948.0,3947.7,0.264]
[1758852854043,0.0852,3948.5,3947.7,0.264]
[1758852854044,0.3364,3947.8,3947.7,0.264]
[1758852854243,0.8865378,3947.8,3947.7,0.264]
[1758852854646,0.8865378,3947.8,3947.2,41.1424]
[1758852854853,0.5501378,3947.7,3947.3,0.3424]
[1758852855051,0.5501378,3947.6,3947.3,0.3424]
[1758852855249,0.45573,3947.3,3947.0,0.1346]
[1758852855553,0.5501378,3947.2,3947.1,41.4064]
[1758852856247,0.4557,3947.5,3947.2,0.3424]
[1758852856452,0.55040215,3947.4,3947.2,0.3424]
[1758852856753,0.55040215,3947.3,3947.2,0.3424]
[1758852858254,0.45572,3947.4,3947.1,41.064]
[1758852858448,0.45572,3947.4,3947.2,0.3424]
[1758852858657,0.3364,3947.7,3947.2,0.3424]
[1758852858846,0.54917669,3947.6,3947.2,0.3424]
[1758852859046,0.54917669,3947.5,3947.1,41.064]
[1758852859248,0.3364,3947.6,3947.2,0.264]
[1758852859447,0.54901571,3947.5,3947.3,0.3424]
[1758852859649,0.3364,3947.6,3947.3,0.3424]
[1758852859852,0.45571,3947.4,3947.3,0.6054]
[1758852860744,0.45571,3947.4,3947.3,0.3424]
[1758852860944,0.0253,3947.9,3946.0,0.1346]
[1758852860945,0.45581,3946.6,3946.5,0.477]
[1758852861146,0.45581,3946.6,3946.5,0.3424]
[1758852861342,4.8739786,3947.5,3946.5,0.3424]
[1758852861343,0.3364,3947.4,3946.6,0.3424]
[1758852861557,0.0253,3947.9,3946.5,9.8756786]
[1758852861558,0.5486491,3947.3,3947.1,0.3424]
[1758852861754,0.3617,3947.9,3947.1,0.3424]
[1758852861952,0.54859818,3947.8,3947.1,0.3424]
[1758852862151,0.3617,3947.9,3947.1,0.3424]
[1758852862152,0.54859818,3947.7,3947.1,0.3424]
[1758852862343,0.45575,3947.2,3947.0,0.3986]
[1758852862549,0.45575,3947.2,3947.1,0.3424]
[1758852862856,0.3617,3947.9,3947.1,0.45574]
[1758852863051,0.45571,3947.5,3947.0,0.3986]
[1758852863455,0.45572,3947.4,3947.2,0.3424]
[1758852863751,0.45572,3947.4,3947.1,0.3424]
[1758852863947,0.45572,3947.4,3947.0,0.3986]
[1758852864147,0.45572,3947.4,3947.1,0.3424]
[1758852864348,0.45572,3947.4,3947.2,0.3424]
[1758852864547,0.45572,3947.4,3947.0,0.3986]
[1758852864755,0.45572,3947.4,3947.2,0.3424]
[1758852864944,0.45572,3947.4,3947.1,0.3424]
[1758852865348,0.3617,3947.9,3947.1,0.3424]
[1758852865559,0.45569,3947.7,3947.2,0.45573]
[1758852865750,0.45569,3947.7,3947.6,0.3424]
[1758852866853,0.0253,3947.9,3947.7,0.3424]
[1758852868262,0.0253,3947.9,3947.7,0.79807]
[1758852868464,0.0253,3947.9,3947.8,0.3424]
[1758852870559,0.79379,3947.7,3947.4,0.264]
[1758852870757,0.45569,3947.7,3947.5,0.3188]
[1758852871262,0.45569,3947.7,3947.5,0.1332]
[1758852871462,0.45569,3947.7,3947.6,0.3188]
[1758852871668,0.79379,3947.7,3947.6,0.3188]
[1758852871854,0.48096,3947.9,3947.6,0.3188]
[1758852872051,0.54934595,3947.8,3947.5,0.5889]
[1758852872256,0.54934595,3947.8,3947.6,0.3188]
[1758852872257,0.45567,3947.8,3947.6,0.3188]
[1758852872556,0.3381,3947.6,3947.4,0.3188]
[1758852872958,0.3381,3947.6,3947.3,0.71972]
[1758852873464,0.7698,3947.6,3947.5,0.5448]
[1758852873761,0.48096,3947.9,3947.8,0.7655]
[1758852873762,0.0253,3947.9,3947.8,0.7655]
[1758852874152,0.5751369,3947.9,3947.8,0.7655]
[1758852874358,0.5751369,3947.9,3947.8,0.5828]
[1758852874561,0.0253,3947.9,3947.8,0.5828]
[1758852874763,0.0253,3947.9,3947.8,5.5828]
[1758852874964,0.0253,3947.9,3947.8,0.5828]
[1758852875563,0.57603077,3947.9,3947.8,0.3188]
[1758852876660,0.57603077,3947.9,3947.8,0.77447]
[1758852878367,0.57603077,3947.9,3947.8,1.22117]
[1758852878563,0.57603077,3947.9,3947.8,6.22117]
[1758852879567,0.57603077,3947.9,3947.8,1.22117]
[1758852879774,0.45552,3949.1,3948.6,0.45557]
[1758852880071,0.2187,3948.8,3948.7,0.5448]
[1758852880268,0.77073555,3948.8,3948.7,0.5448]
[1758852880572,0.55203555,3948.8,3948.7,0.3188]
[1758852880768,0.55203555,3949.3,3948.9,0.45554]
[1758852880972,0.3381,3949.4,3948.9,0.45554]
[1758852880973,0.56096618,3949.2,3949.1,0.3188]
[1758852881163,0.56096618,3949.2,3949.1,0.5818]
[1758852882266,0.89906618,3949.2,3949.1,0.5818]
[1758852882568,0.56096618,3949.2,3949.1,0.5818]
[1758852883464,0.77966618,3949.2,3949.1,1.0285]
[1758852884369,0.99266618,3949.2,3949.1,1.0285]
[1758852884557,0.4317,3948.6,3948.1,0.3188]
[1758852884762,0.4317,3948.6,3948.3,0.5448]
[1758852884763,0.4317,3948.4,3948.3,0.5448]
[1758852884958,0.4317,3948.4,3948.0,0.1332]
[1758852884959,0.3381,3948.1,3947.8,0.3188]
[1758852885165,0.0857,3948.5,3947.6,0.45568]
[1758852885166,0.89906618,3948.0,3947.6,0.45568]
[1758852885367,0.89906618,3948.0,3947.7,0.242]
[1758852885368,0.56096618,3947.9,3947.7,0.242]
[1758852885568,0.55800644,3947.8,3947.7,0.242]
[1758852886274,0.55800644,3947.8,3947.7,0.5608]
[1758852886469,0.55800644,3947.8,3947.7,5.5608]
[1758852886769,0.471,3949.0,3947.8,0.45567]
[1758852886969,0.79368,3948.6,3948.0,0.1332]
[1758852887174,0.56662399,3948.5,3948.0,0.1332]
[1758852887477,0.3381,3948.1,3947.9,0.263]
[1758852887665,0.56662399,3948.0,3947.9,0.5818]
[1758852889974,0.56662399,3948.0,3947.9,0.3188]
[1758852890273,0.90472399,3948.0,3947.9,0.5818]
[1758852890476,2.53454539,3949.4,3948.7,0.77436]
[1758852890477,0.3381,3949.3,3948.7,0.77436]
[1758852890667,0.1367,3949.5,3948.3,0.7744]
[1758852890872,0.1367,3949.5,3948.4,0.233]
[1758852890873,0.45551,3949.2,3948.4,0.233]
[1758852891174,0.3381,3948.9,3948.4,0.68859]
[1758852891478,0.59224,3949.0,3948.4,0.68859]
[1758852891666,0.1367,3949.0,3948.4,0.233]
[1758852891980,0.1367,3949.0,3948.6,0.45557]
[1758852892276,0.3381,3949.0,3948.4,0.233]
[1758852892573,0.3381,3949.3,3948.6,0.3188]
[1758852892773,0.4555,3949.3,3948.7,0.45555]
[1758852892975,0.3381,3949.4,3948.9,0.45553]
[1758852893172,0.45551,3949.2,3948.6,0.77437]
[1758852893377,0.3381,3948.9,3948.4,0.233]
[1758852893574,0.4748,3949.0,3948.5,0.3188]
[1758852893767,0.1367,3949.5,3948.5,0.3188]
[1758852893768,0.3381,3948.9,3948.7,0.45555]
[1758852893968,0.3381,3948.9,3948.8,0.3188]
[1758852894168,0.1367,3949.0,3948.7,0.45555]
[1758852894375,0.3381,3948.9,3948.7,0.45555]
[1758852894965,0.1367,3949.0,3948.7,0.77435]
[1758852895165,0.3381,3948.9,3948.7,0.77435]
[1758852895365,0.59218,3949.5,3948.9,0.45554]
[1758852896280,0.45549,3949.4,3948.9,0.45554]
[1758852896483,0.9065,3949.0,3948.9,0.226]
[1758852896979,0.2187,3948.2,3948.1,0.90233]
[1758852897167,0.2187,3948.2,3948.1,1.48413]
[1758852897370,0.3381,3948.5,3948.4,0.4556]
[1758852897579,0.7698,3948.5,3948.4,0.6816]
[1758852898777,0.9065,3948.5,3948.2,0.77441]
[1758852898980,0.2187,3947.8,3947.7,41.1188]
[1758852899177,0.3381,3948.4,3947.7,41.3818]
[1758852899381,0.7698,3948.4,3948.3,0.226]
[1758852899575,0.4317,3948.4,3948.1,0.45563]
[1758852899781,0.2187,3948.3,3948.2,0.226]
[1758852899977,0.2187,3948.3,3947.7,40.8]
[1758852899978,0.3381,3948.2,3947.7,40.8]
[1758852900283,0.3364,3948.4,3947.8,1.50446]
[1758852900486,0.45562,3948.3,3947.8,1.0488]
[1758852900685,0.4322,3947.9,3947.4,0.3349]
[1758852900880,0.1321,3947.5,3946.5,39.6382]
[1758852901184,0.3364,3947.4,3946.7,0.4558]
[1758852901382,0.45573,3947.3,3946.6,41.1349]
[1758852901575,0.5567,3946.9,3946.6,41.1349]
[1758852901776,0.5567,3946.9,3946.0,5.40968298]
[1758852901777,0.3364,3946.7,3946.4,0.263]
[1758852902181,0.3364,3946.5,3946.4,0.263]
[1758852902385,0.3364,3946.7,3946.2,0.3349]
[1758852902587,0.3364,3946.5,3946.3,0.263]
[1758852902786,0.3364,3946.9,3946.4,0.3349]
[1758852902986,0.1321,3947.5,3946.7,0.3349]
[1758852902987,0.56106746,3946.8,3946.7,0.3349]
[1758852903287,1.94933631,3948.0,3947.4,0.45571]
[1758852903288,0.1321,3948.0,3947.4,0.45571]
[1758852903581,0.3364,3947.8,3947.6,0.3349]
[1758852903785,0.1321,3948.0,3947.6,0.3349]
[1758852903786,0.8972123,3947.7,3947.6,0.3349]
[1758852904186,0.5608123,3947.7,3947.6,0.3349]
[1758852904585,0.8778123,3947.7,3947.6,0.3349]
[1758852905380,0.5608123,3947.7,3947.6,5.0]
[1758852905586,0.317,3948.6,3948.5,0.3419]
[1758852905780,0.317,3948.9,3948.7,0.3419]
[1758852905984,0.55831783,3948.8,3948.7,0.3419]
[1758852906386,0.87531783,3948.8,3948.7,0.3419]
[1758852906584,0.55831783,3948.8,3948.7,0.3419]
[1758852906779,0.55831783,3948.8,3948.7,5.3419]
[1758852907091,1.94693631,3950.0,3948.8,0.3419]